Cogmind - Beta 13 @@@ ROGUE MODE // 2024.04.11 @ 22:08:29 Player: graour Result: Self-destructed Performance ------------- Evolutions (3) 1500 Regions Visited (5) 1000 Robots Destroyed (15) 75 Value Destroyed (459) 459 Prototype IDs (0) 0 Alien Tech Used (0) 0 Bonus (0) 0 TOTAL SCORE: 3034 Bonus ------- None Cogmind --------- Core Integrity 638/700 Matter 300/300 Energy 100/100 System Corruption 0% Temperature Cool (9) Movement Flying (435) Ox5 Location -7/Factory Parts ------- > --- POWER (2) -------- (None) > --- PROPULSION (5) --- VTOL Module > --- UTILITY (4) ------ Improved Heat Sink Signal Interpreter ECM Suite Improved Light Armor Plating > --- WEAPON (2) ------- Heavy Ion Cannon Heavy Ion Cannon > --- INVENTORY (5) ---- Improved Deuterium Engine Light Assault Rifle Gauss Rifle Flak Gun Grenade Launcher Peak State ------------ > --- POWER ------------ Improved Ion Engine Improved Deuterium Engine > --- PROPULSION ------- VTOL Module VTOL Module VTOL Module Cesium-ion Thruster > --- UTILITY ---------- Signal Interpreter ECM Suite ECM Suite Hacking Suite > --- WEAPON ----------- Light Assault Rifle Gauss Rifle > --- INVENTORY -------- VTOL Module Heavy Laser Grenade Launcher Mining Laser [Rating: 26] Favorites ----------- Power Improved Ion Engine Engine Improved Ion Engine Power Core Light Nuclear Core Propulsion VTOL Module Treads Light Treads Flight Unit VTOL Module Utility ECM Suite Device ECM Suite Storage Small Storage Unit Processor Signal Interpreter Hackware Hacking Suite Protection Improved Light Armor Plating Weapon Light Assault Rifle Energy Cannon Heavy Ion Cannon Ballistic Gun Light Assault Rifle Build | -11 -10 -9 -9 -8 -7 ------- Run | Yrd Mat Mat Min Mat Fac Slots Evolved 6 | . . 2 . 2 2 Power 1 | . . . . . 1 Propulsion 3 | . . 1 . 1 1 Utility 2 | . . 1 . 1 . Weapon . | . . . . . . Parts Attached 36 | 6 10 2 1 6 11 Power 8 | 1 2 . 1 2 2 Engine 6 | 1 1 . 1 1 2 Core 2 | . 1 . . 1 . Reactor . | . . . . . . Propulsion 10 | 2 2 1 . 2 3 Treads 2 | 2 . . . . . Leg . | . . . . . . Wheel . | . . . . . . Hover . | . . . . . . Flight 8 | . 2 1 . 2 3 Utility 7 | 1 2 1 . 1 2 Device 3 | . 1 . . 1 1 Storage 1 | 1 . . . . . Processor 1 | . 1 . . . . Hackware 1 | . . 1 . . . Protection 1 | . . . . . 1 Artifact . | . . . . . . Weapon 11 | 2 4 . . 1 4 Energy Gun . | . . . . . . Energy Cannon 6 | . 2 . . . 4 Ballistic Gun 5 | 2 2 . . 1 . Ballistic Cannon . | . . . . . . Launcher . | . . . . . . Special Weapon . | . . . . . . Impact Weapon . | . . . . . . Slashing Weapon . | . . . . . . Piercing Weapon . | . . . . . . Special Melee Weapon . | . . . . . . Unidentified Prototypes . | . . . . . . Parts Lost 9 | . . . . 2 7 Power 2 | . . . . 1 1 Propulsion 4 | . . . . . 4 Utility 2 | . . . . . 2 Weapon 1 | . . . . 1 . Highest Loss Streak 3 | . . . . 2 3 To Critical Strikes . | . . . . . . Average Slot Usage (%) 88 | . 93 100 100 96 76 Engine 8 | . 9 11 11 3 6 Core 2 | . 4 . . 4 . Treads 9 | . 19 . . . . Flight 18 | . 8 33 33 36 23 Device 9 | . 3 11 11 18 14 Storage 4 | . 9 . . . . Processor 8 | . 8 11 11 9 7 Hackware 3 | . . 11 11 9 4 Energy Cannon 4 | . . . . . 13 Ballistic Gun 17 | . 27 22 22 16 1 Naked Turns . | . . . . . . Heaviest Build 29 | 12 12 7 11 16 29 Greatest Support 40 | 40 40 12 12 17 17 Greatest Overweight (x) 7 | . 2 . . 3 7 Average Overweight (x) . | . . . . . . Largest Inventory Capacity 8 | 8 8 5 5 5 5 Average Capacity 6 | 6 7 5 5 5 5 Most Carried 8 | 6 8 4 5 4 5 Average Carried 5 | 4 6 3 4 3 4 Final Capacity 8 | 8 5 5 5 5 5 Final Carried 6 | 6 5 3 5 3 5 Class Distribution -------------------- 80% | Mutant 19% | Sprinter Dominant Class ---------------- Mutant | -10/Materials Mutant | -9/Materials Sprinter | -9/Mines Mutant | -8/Materials Mutant | -7/Factory Resources | -11 -10 -9 -9 -8 -7 ----------- Run | Yrd Mat Mat Min Mat Fac Matter Collected 614 | 259 181 . 30 51 93 Remotely . | . . . . . . Salvage Created 636 | . 376 . . 51 209 Parts 35 | . 27 . . 3 5 Haulers Intercepted 1 | . 1 . . . . Recyclers Shooed . | . . . . . . Parts Field Recycled . | . . . . . . Retrieved Matter . | . . . . . . Parts Self-Destructed . | . . . . . . Prevented . | . . . . . . Kills | -11 -10 -9 -9 -8 -7 ------- Run | Yrd Mat Mat Min Mat Fac Combat Hostiles Destroyed 11 | . 7 . . 1 3 Guns 8 | . 7 . . 1 . Cannons 3 | . . . . . 3 Classes Destroyed 7 | . 5 . . 1 1 Hauler 1 | . 1 . . . . Recycler 1 | . 1 . . . . Watcher 2 | . 2 . . . . Swarmer 3 | . 3 . . . . Grunt 4 | . 4 . . . . Sentry 3 | . . . . . 3 Hunter 1 | . . . . 1 . Best Kill Streak 4 | . 4 . . 1 2 Combat Bots Only 3 | . 3 . . 1 2 Max Kills in Single Turn 2 | . 2 . . 1 1 Gunslinging 1 | . 1 . . . . Exploded . | . . . . . . Melee . | . . . . . . Uniques/NPCs Destroyed . | . . . . . . Combat | -11 -10 -9 -9 -8 -7 -------- Run | Yrd Mat Mat Min Mat Fac Hostile Shots Fired 149 | . 36 . . 22 91 Missed 59 | . 8 . . 9 42 Damage Taken 954 | . 314 . 21 185 434 Core 202 | . 87 . 21 32 62 Absorbed by Shields . | . . . . . . Core Remaining (%) 88 | 100 65 . 94 94 . Volleys Fired 57 | . 40 . . 10 7 Largest 2 | . 2 . . 2 2 Hottest 130 | . 40 . . 40 130 Shots Fired 109 | . 80 . . 15 14 Gun 95 | . 80 . . 15 . Cannon 14 | . . . . . 14 Launcher . | . . . . . . Special . | . . . . . . Kinetic 95 | . 80 . . 15 . Thermal 14 | . . . . . 14 Explosive . | . . . . . . Electromagnetic . | . . . . . . Robot Hit Streak 16 | . 16 . . 4 15 Robot Miss Streak 4 | . 4 . . 2 . Penetration Max . | . . . . . . Secondary Targets 1 | . 1 . . . . Max Gunslinging Chain 1 | . 1 . . . . Shots Hit Robots 81 | . 59 . . 11 11 Core Hits 35 | . 23 . . 6 6 Critical Kills . | . . . . . . Critical Parts Destroyed 1 | . . . . 1 . Critical Strikes 1 | . . . . 1 . Destroy 1 | . . . . 1 . Melee Attacks . | . . . . . . Impact . | . . . . . . Slashing . | . . . . . . Piercing . | . . . . . . Sneak Attacks . | . . . . . . Combat Hostiles . | . . . . . . Follow-up Attacks . | . . . . . . Damage Inflicted 835 | . 477 . . 63 295 Guns 540 | . 477 . . 63 . Cannons 295 | . . . . . 295 Explosions . | . . . . . . Melee . | . . . . . . Ramming . | . . . . . . Kinetic 540 | . 477 . . 63 . Thermal 295 | . . . . . 295 Explosive . | . . . . . . Electromagnetic . | . . . . . . Impact . | . . . . . . Slashing . | . . . . . . Piercing . | . . . . . . Highest Corruption . | . . . . . . Average Corruption . | . . . . . . Corruption Purged . | . . . . . . Corruption Blocked . | . . . . . . Overload Shots . | . . . . . . Overflow Damage . | . . . . . . Projectiles . | . . . . . . Explosions . | . . . . . . Melee . | . . . . . . Knockbacks . | . . . . . . Impact . | . . . . . . Kinetic . | . . . . . . Secondary . | . . . . . . Self-Inflicted Damage . | . . . . . . Shots . | . . . . . . Rammed . | . . . . . . Targets Rammed . | . . . . . . Kicked . | . . . . . . Crushed . | . . . . . . Highest Temperature 239 | . 62 . 2 . 239 Average Temperature 38 | . 10 . 2 . 96 Received Heat Transfer 336 | . 153 . 9 . 174 Siege Activations . | . . . . . . Robots Corrupted . | . . . . . . Combat Hostiles . | . . . . . . Parts Fried . | . . . . . . Impact Corruptions . | . . . . . . Robots Melted . | . . . . . . Combat Hostiles . | . . . . . . Parts Melted . | . . . . . . Heat Transferred 407 | . . . . . 407 Parts Sabotaged . | . . . . . . Parts Stolen . | . . . . . . Parts Stripped . | . . . . . . Power Chain Reactions . | . . . . . . Alert | -11 -10 -9 -9 -8 -7 ------- Run | Yrd Mat Mat Min Mat Fac Peak Influence 233 | . 233 55 36 30 88 Initial 55 | . . 55 21 13 13 Average 44 | . 69 55 23 10 32 Maximum Alert Level 1 | . 1 . . . . Low Security (%) 97 | 100 93 100 100 100 100 Level 1 2 | . 6 . . . . Level 2 . | . . . . . . Level 3 . | . . . . . . Level 4 . | . . . . . . Level 5 . | . . . . . . High Security . | . . . . . . Max Security . | . . . . . . Squads Dispatched 5 | . 2 . . . 3 Investigation 2 | . 1 . . . 1 Extermination . | . . . . . . Reinforcement 1 | . 1 . . . . Assault . | . . . . . . Garrison 2 | . . . . . 2 Intercept . | . . . . . . Searches Triggered . | . . . . . . Construction Impeded . | . . . . . . Haulers Reinforced . | . . . . . . Active Scanning Responses . | . . . . . . Cargo Convoy Interrupts . | . . . . . . Stealth | -11 -10 -9 -9 -8 -7 --------- Run | Yrd Mat Mat Min Mat Fac Distress Signals 3 | . 1 . . 2 . Communications Jammed . | . . . . . . Distress Signals . | . . . . . . Times Spotted 37 | . 18 4 5 3 7 Peak Tracking Total 5 | . 5 4 4 2 4 Tactical Retreats 4 | . 2 . 1 1 . Traps | -11 -10 -9 -9 -8 -7 ------- Run | Yrd Mat Mat Min Mat Fac Traps Triggered 2 | . . . . . 2 Indirectly . | . . . . . . Trap Hack Attempts . | . . . . . . Triggered . | . . . . . . Disarmed . | . . . . . . Reprogrammed 1 | . 1 . . . . Reused 1 | . 1 . . . . Traps Extracted . | . . . . . . Installed . | . . . . . . Triggered 1 | . 1 . . . . Machines | -11 -10 -9 -9 -8 -7 ---------- Run | Yrd Mat Mat Min Mat Fac Machines Disabled 1 | . . . . . 1 Max in Single Turn 1 | . . . . . 1 Machines Repaired . | . . . . . . Machines Dismantled . | . . . . . . Machines Sabotaged . | . . . . . . Overloaded Fab Kills . | . . . . . . Hacking | -11 -10 -9 -9 -8 -7 --------- Run | Yrd Mat Mat Min Mat Fac Machines Accessed 6 | . 5 . . . 1 Terminals 5 | . 5 . . . . Fabricators 1 | . . . . . 1 Repair Stations . | . . . . . . Recycling Units . | . . . . . . Scanalyzers . | . . . . . . Garrison Access . | . . . . . . Total Hacks 17 | . 15 . . . 2 Successful 9 | . 9 . . . . Failed 8 | . 6 . . . 2 Catastrophic 1 | . . . . . 1 Database Lockouts . | . . . . . . Manual 4 | . 4 . . . . Terminals 15 | . 15 . . . . Fabricators 2 | . . . . . 2 Repair Stations . | . . . . . . Recycling Units . | . . . . . . Scanalyzers . | . . . . . . Garrison Access . | . . . . . . Terminal Hacks 5 | . 5 . . . . Robot Analysis 1 | . 1 . . . . Alert Level 1 | . 1 . . . . Reprogram Traps 1 | . 1 . . . . Hauler Manifests 1 | . 1 . . . . Registered Components 1 | . 1 . . . . Fabricator Hacks . | . . . . . . Repair Station Hacks . | . . . . . . Recycling Unit Hacks . | . . . . . . Scanalyzer . | . . . . . . Garrison Access Hacks . | . . . . . . Unauthorized Hacks 4 | . 4 . . . . Terminals 4 | . 4 . . . . Assimilate 1 | . 1 . . . . Botnet 3 | . 3 . . . . Fabricators . | . . . . . . Repair Stations . | . . . . . . Recycling Units . | . . . . . . Scanalyzers . | . . . . . . Garrison Access . | . . . . . . Data Cores Recovered . | . . . . . . Used . | . . . . . . Hacking Detections 5 | . 4 . . . 1 Full Trace Events 1 | . . . . . 1 Feedback Events . | . . . . . . Feedback Blocked . | . . . . . . Robot Schematics Acquired . | . . . . . . Robots Built . | . . . . . . Authchips . | . . . . . . Time . | . . . . . . Total Robot Build Rating . | . . . . . . Part Schematics Acquired . | . . . . . . Parts Built . | . . . . . . Authchips . | . . . . . . Time . | . . . . . . Total Part Build Rating . | . . . . . . Parts Repaired . | . . . . . . Time . | . . . . . . Parts Recycled . | . . . . . . Recycled Matter . | . . . . . . Retrieved Matter . | . . . . . . Retrieved Components . | . . . . . . Parts Scanalyzed . | . . . . . . Part Schematics Acquired . | . . . . . . Parts Damaged . | . . . . . . Bothacking | -11 -10 -9 -9 -8 -7 ------------ Run | Yrd Mat Mat Min Mat Fac Used RIF Installer . | . . . . . . Robots Hacked . | . . . . . . Non-combat . | . . . . . . Combat . | . . . . . . Robot Hacks Applied . | . . . . . . Relay Couplers Released . | . . . . . . Fabnet Peak Effective % . | . . . . . . Robots Rewired . | . . . . . . Allies Hacked . | . . . . . . Hacks Repelled . | . . . . . . Allies | -11 -10 -9 -9 -8 -7 -------- Run | Yrd Mat Mat Min Mat Fac Total Allies 2 | . 1 . 1 . . Largest Group 1 | . 1 . 1 1 . Highest-Rated Group 31 | . 10 . 31 31 . Highest-Rated Ally 31 | . 10 . 31 31 . Total Orders . | . . . . . . Ally Attacks 5 | . . . 3 2 . Total Damage 63 | . . . 21 42 . Kills . | . . . . . . Allies Corrupted . | . . . . . . Allies Melted . | . . . . . . Intel | -11 -10 -9 -9 -8 -7 ------- Run | Yrd Mat Mat Min Mat Fac Robot Analysis Total 1 | . 1 . . . . Derelict Logs Recovered 1 | . . . 1 . . Drone Launches . | . . . . . . Drone Recoveries . | . . . . . . Exploration | -11 -10 -9 -9 -8 -7 ------------- Run | Yrd Mat Mat Min Mat Fac Turns Passed 1320 | 104 595 11 103 119 388 Spaces Moved 1079 | 58 413 31 281 112 184 Core 10 | 2 2 . . 6 . Treads 257 | 56 201 . . . . Legs . | . . . . . . Wheels . | . . . . . . Hover . | . . . . . . Flight 812 | . 210 31 281 106 184 Fastest Speed 26 | 50 32 29 29 26 26 Average Speed 78 | 156 99 29 29 64 100 Slowest Speed 595 | 160 160 29 29 200 595 Overloaded Moves . | . . . . . . Propulsion Burnouts . | . . . . . . Robots Hopped 4 | . 2 . 1 1 . Cave-ins Triggered . | . . . . . . Exploration Rate (%) 22 | 3 49 6 56 14 4 Regions Visited 5 Branch Regions 1 Pre-discovered Areas . | . . . . . . Known Exits Taken 4 | . 1 1 1 1 . Unknown Exits Taken 1 | 1 . . . . . Scrap Searched 3 | . . . 3 . . Spaces Dug . | . . . . . . Terrain Destroyed . | . . . . . . Melee . | . . . . . . Projectile . | . . . . . . AOE . | . . . . . . Terrain Rammed . | . . . . . . Walls Destroyed . | . . . . . . Machines Disabled . | . . . . . . Actions | -11 -10 -9 -9 -8 -7 --------- Run | Yrd Mat Mat Min Mat Fac Total 1448 | 69 532 32 301 144 370 Wait 239 | . 45 . 18 15 161 Move 1066 | 57 408 30 278 109 184 Hop 4 | . 2 . 1 1 . Pick Up 21 | 6 9 . 2 . 4 Fast Attach 26 | 6 9 . . 3 8 Attach 6 | . . 2 . 3 1 Detach 6 | . 3 . . 2 1 Swap 4 | . 1 . 1 . 2 Drop 19 | . 15 . 1 1 2 Fire 57 | . 40 . . 10 7 Melee . | . . . . . . Ram . | . . . . . . Kick . | . . . . . . Crush . | . . . . . . Escape Stasis . | . . . . . . Rewire . | . . . . . . Trap . | . . . . . . Miscellaneous . | . . . . . . Route ------- -11/Scrapyard -10/Materials (discovered 2 exits: *Mat x2) -9/Materials -9/Mines -8/Materials -7/Factory History --------- Turn | Location | Event 46 | -11/Scrapyard | Discovered new exit (range 16) 105 | -11/Scrapyard | Entered Materials 315 | -10/Materials | Build established: Mutant 537 | -10/Materials | Discovered new exit (range 16) 641 | -10/Materials | Discovered new exit (range 9) 699 | -10/Materials | Identified exit to Materials 700 | -10/Materials | Entered another Materials area 700 | -9/Materials | Evolved 2 slots: Propulsion x1, Utility x1 703 | -9/Materials | Discovered new exit (range 15) 708 | -9/Materials | Identified exit to Mines 711 | -9/Materials | Entered Mines 714 | -9/Mines | Received a Mining Laser from a helpful Derelict 749 | -9/Mines | Learned Materials garrison access intel 751 | -9/Mines | Discovered new exit (range 10) 753 | -9/Mines | Identified exit to Materials 792 | -9/Mines | Met a Derelict bent on vengeance 814 | -9/Mines | Entered Materials 814 | -8/Materials | Accompanied by 1 ally 814 | -8/Materials | Evolved 2 slots: Propulsion x1, Utility x1 815 | -8/Materials | Loaded intel: 1 garrison access location 929 | -8/Materials | Discovered new exit (range 16) 932 | -8/Materials | Identified exit to Factory 933 | -8/Materials | Entered Factory 933 | -7/Factory | Evolved 2 slots: Power x1, Propulsion x1 1169 | -7/Factory | Garrison activated, responded to threat 1215 | -7/Factory | Lost 3 parts (2n1u) 1321 | -7/Factory | Self-destructed Last Messages --------------- 01172_ Y-54 Guardian destroyed. 01176_ Acquired 73 matter. 01182_ Hacking Suite destroyed. 01182_ VTOL Module destroyed. 01214_ Y-54 Guardian destroyed. 01214_ Manufacturing Mainframe disabled. 01216_ VTOL Module destroyed. 01219_ ECM Suite destroyed. 01220_ Y-54 Guardian destroyed. 01224_ Acquired 10 matter. 01232_ Acquired Imp. Light Armor Plating. 01234_ Acquired 10 matter. 01239_ Acquired Imp. Heat Sink. 01243_ Acquired Flak Gun. 01300_ K-01 Serf collects debris. 01313_ Cesium-ion Thruster destroyed. 01316_ K-01 Serf collects debris. 01318_ Imp. Ion Engine destroyed. 01319_ Critical hit (Burn: +37). 01320_ K-01 Serf collects debris. Map ----- +----------------------------------------------------+ | | | | | | | | | | | | | | | | | | | ?????????????????????????????????????????????????? | | ?????????????????????????????????????????????????? | | ???????????????????????##############????????????? | | ???????????????????????# ! #????????????? | | ???????????????????????# #?????#??????? | | ???????????????????????# """" """" ##??# ####???? | | ???????????????????????# """" """" # #???? | | ???????????????????????# """" """" # """ #???? | | ???????????????????????# """ """" # "G #???? | | ???????????????????????# !% % # """ #???? | | ???????????????????????# """" """" # #???? | | ???????????????????????# """" """" # ] // #???? | | ???????????????????????# """" """" #! // ????? | | ???????????????????????# """" """" # /??????? | | ???????????????????????# # ????????? | | ?????????????????+############+#######+########### | | ?????????? @ g | | ?????????? g! | | ?????????? ^g k | | ??????????? | | ??????????? k Y ^ | | ???????????? ############+#############+#### | | ???????????? ????????????? ?????# # | | ???????????? ??????????????? ????# """" # | | ????????????? ?????????????????""" ???# """" # | | ?????????????"???????????????????"" ! ?# """" # | | ?????????????????????????????????"??? ?# """" # | | ???????????????????????????????????????# # | | ?????????????????????????????????????????? # | | ??????????????????????????????????????????? # | | ????????????????????????????????????????????###### | | ?????????????????????????????????????????????????? | | ?????????????????????????????????????????????????? | | ?????????????????????????????????????????????????? | | ?????????????????????????????????????????????????? | | ?????????????????????????????????????????????????? | | ?????????????????????????????????????????????????? | | ?????????????????????????????????????????????????? | | ?????????????????????????????????????????????????? | | ?????????????????????????????????????????????????? | | ?????????????????????????????????????????????????? | +----------------------------------------------------+ Best States ------------- Heat Dissipation 48 Energy Generation 14 Energy Capacity 265 Matter Stores 300 Matter Capacity 300 Sight Range 16 Terrain Scan Density 10 ECM Strength 2 Armor Coverage 150 Evasion (%) 64 Recoil Reduction 2 Offensive Hacking 10 Item Schematics ----------------- None Robot Schematics ------------------ None Fabricated ------------ Nothing Alien Tech Used ----------------- None Achievements -------------- None Challenges ------------ None Game ------ Seed ThermoelectricInsulatedLog Manual? 0 Play Time 00:20:36 Cumulative 23.4 hours Start 2024.04.11 @ 21:50:36 End 2024.04.11 @ 22:08:29 Sessions 1 Manual Loads 0 Difficulty Rogue Special Mode None Game No. 42 Rogue 42 Adventurer 0 Explorer 0 Win Type - Total 0 Types 0/0/0/0/0/0/0/0/0 Lore% 23 Gallery% 31 Achievement% 23 Wizard Run 0 Options --------- Layout 1 ASCII 0 Keyboard 1 Movement Arrows Keybinds 0 Fullscreen 1 Font 24/Smallcaps Map View 50x35 Zoom Use 0% Tactical HUD 1 Map Filters NONE Filters NONE Steam 1 RUN: e618216e-ccff-44c9-9b56-858fe3237d03